[Event "Titled Tuesday Blitz July 11 Late 2023"]
[White "Bettalli, Francesco"]
[Black "Ardila, Oscar Humberto"]
[WhiteFideId "2816453"]
[BlackFideId "4404742"]
[WhiteElo "2484"]
[BlackElo "2276"]
[Result "0-1"]
[Round "4"]
[TimeControl "180+2"]
[Date "2023.07.11"]
[WhiteClock "0:00:08"]
[BlackClock "0:00:04"]
[Board "139"]

1. d4 {[%clk 0:03:00]}  Nf6 {[%clk 0:02:59]} 2. Nc3 {[%clk 0:03:01]}  e6 {[%clk 0:02:53]} 3. e4 {[%clk 0:03:00]}  d5 {[%clk 0:02:49]} 4. e5 {[%clk 0:03:00]}  Nfd7 {[%clk 0:02:49]} 5. Nce2 {[%clk 0:02:59]}  c5 {[%clk 0:02:49]} 6. c3 {[%clk 0:02:59]}  Nc6 {[%clk 0:02:48]} 7. f4 {[%clk 0:02:59]}  Qb6 {[%clk 0:02:46]} 8. Nf3 {[%clk 0:02:59]}  cxd4 {[%clk 0:02:46]} 9. cxd4 {[%clk 0:02:59]}  Bb4+ {[%clk 0:02:45]} 10. Bd2 {[%clk 0:02:59]}  g6 {[%clk 0:02:39]} 11. a3 {[%clk 0:02:58]}  Be7 {[%clk 0:02:38]} 12. b4 {[%clk 0:02:56]}  a5 {[%clk 0:02:34]} 13. bxa5 {[%clk 0:02:43]}  Nxa5 {[%clk 0:02:33]} 14. Rb1 {[%clk 0:02:43]}  Qd8 {[%clk 0:02:27]} 15. Nc3 {[%clk 0:02:42]}  Nc4 {[%clk 0:02:14]} 16. Bxc4 {[%clk 0:02:40]}  dxc4 {[%clk 0:02:14]} 17. Nb5 {[%clk 0:02:39]}  O-O {[%clk 0:02:13]} 18. Bb4 {[%clk 0:02:37]}  Nb6 {[%clk 0:01:59]} 19. Bxe7 {[%clk 0:02:35]}  Qxe7 {[%clk 0:01:58]} 20. Nd6 {[%clk 0:02:36]}  Nd5 {[%clk 0:01:55]} 21. O-O {[%clk 0:02:35]}  Nc3 {[%clk 0:01:54]} 22. Qc2 {[%clk 0:02:29]}  Nxb1 {[%clk 0:01:53]} 23. Rxb1 {[%clk 0:02:30]}  Rxa3 {[%clk 0:01:49]} 24. Qxc4 {[%clk 0:02:31]}  Qd7 {[%clk 0:01:28]} 25. Ng5 {[%clk 0:02:28]}  Qa4 {[%clk 0:01:20]} 26. Qxa4 {[%clk 0:02:10]}  Rxa4 {[%clk 0:01:20]} 27. Nge4 {[%clk 0:02:11]}  Rxd4 {[%clk 0:01:13]} 28. Nf6+ {[%clk 0:02:12]}  Kh8 {[%clk 0:01:10]} 29. g3 {[%clk 0:02:10]}  Rd2 {[%clk 0:01:06]} 30. Rc1 {[%clk 0:02:09]}  b5 {[%clk 0:00:58]} 31. Nxc8 {[%clk 0:02:06]}  b4 {[%clk 0:00:58]} 32. Nd6 {[%clk 0:02:06]}  b3 {[%clk 0:00:57]} 33. Rb1 {[%clk 0:02:05]}  b2 {[%clk 0:00:57]} 34. Nc4 {[%clk 0:02:03]}  Rc2 {[%clk 0:00:54]} 35. Rxb2 {[%clk 0:02:00]}  Rxc4 {[%clk 0:00:53]} 36. Kg2 {[%clk 0:01:59]}  Rfc8 {[%clk 0:00:49]} 37. Kh3 {[%clk 0:01:59]}  h5 {[%clk 0:00:42]} 38. Kh4 {[%clk 0:01:56]}  Kg7 {[%clk 0:00:39]} 39. Kg5 {[%clk 0:01:54]}  Rc2 {[%clk 0:00:37]} 40. Rb7 {[%clk 0:01:52]}  R2c7 {[%clk 0:00:37]} 41. Rb3 {[%clk 0:01:50]}  Rd8 {[%clk 0:00:31]} 42. h3 {[%clk 0:01:46]}  Rdc8 {[%clk 0:00:29]} 43. g4 {[%clk 0:01:45]}  hxg4 {[%clk 0:00:29]} 44. hxg4 {[%clk 0:01:46]}  Rd8 {[%clk 0:00:27]} 45. Rh3 {[%clk 0:01:46]}  Rh8 {[%clk 0:00:24]} 46. Rd3 {[%clk 0:01:44]}  Rhc8 {[%clk 0:00:16]} 47. Rd6 {[%clk 0:01:45]}  Kf8 {[%clk 0:00:12]} 48. f5 {[%clk 0:01:37]}  gxf5 {[%clk 0:00:11]} 49. gxf5 {[%clk 0:01:38]}  Ke7 {[%clk 0:00:12]} 50. Rd1 {[%clk 0:01:31]}  Rd8 {[%clk 0:00:11]} 51. Rh1 {[%clk 0:01:27]}  exf5 {[%clk 0:00:11]} 52. Kxf5 {[%clk 0:01:27]}  Rc2 {[%clk 0:00:11]} 53. Rf1 {[%clk 0:01:19]}  Rdd2 {[%clk 0:00:10]} 54. Ne4 {[%clk 0:01:17]}  Rh2 {[%clk 0:00:08]} 55. Ra1 {[%clk 0:01:13]}  Rh5+ {[%clk 0:00:07]} 56. Ng5 {[%clk 0:01:12]}  Rg2 {[%clk 0:00:06]} 57. Ra7+ {[%clk 0:01:10]}  Kd8 {[%clk 0:00:06]} 58. Ra8+ {[%clk 0:01:07]}  Kc7 {[%clk 0:00:06]} 59. Rg8 {[%clk 0:01:03]}  Kc6 {[%clk 0:00:04]} 60. Kf6 {[%clk 0:00:59]}  Kd5 {[%clk 0:00:03]} 61. Rd8+ {[%clk 0:00:57]}  Kc5 {[%clk 0:00:03]} 62. Nxf7 {[%clk 0:00:54]}  Rf2+ {[%clk 0:00:03]} 63. Ke6 {[%clk 0:00:50]}  Rhf5 {[%clk 0:00:03]} 64. Nd6 {[%clk 0:00:46]}  Rh5 {[%clk 0:00:03]} 65. Rc8+ {[%clk 0:00:46]}  Kb6 {[%clk 0:00:03]} 66. Rb8+ {[%clk 0:00:43]}  Ka7 {[%clk 0:00:04]} 67. Rb4 {[%clk 0:00:40]}  Re2 {[%clk 0:00:04]} 68. Nf7 {[%clk 0:00:34]}  Rh3 {[%clk 0:00:03]} 69. Kd6 {[%clk 0:00:32]}  Rd3+ {[%clk 0:00:02]} 70. Ke7 {[%clk 0:00:33]}  Rde3 {[%clk 0:00:03]} 71. Ke6 {[%clk 0:00:32]}  Re1 {[%clk 0:00:02]} 72. Kf6 {[%clk 0:00:27]}  Ka6 {[%clk 0:00:03]} 73. Rb8 {[%clk 0:00:23]}  Rf3+ {[%clk 0:00:03]} 74. Ke6 {[%clk 0:00:23]}  Rfe3 {[%clk 0:00:03]} 75. Kd5 {[%clk 0:00:22]}  Rd3+ {[%clk 0:00:03]} 76. Kc6 {[%clk 0:00:20]}  Ka7 {[%clk 0:00:03]} 77. Rb7+ {[%clk 0:00:20]}  Ka8 {[%clk 0:00:03]} 78. Re7 {[%clk 0:00:18]}  Rc1+ {[%clk 0:00:03]} 79. Kb5 {[%clk 0:00:18]}  Rb3+ {[%clk 0:00:04]} 80. Ka4 {[%clk 0:00:19]}  Rb2 {[%clk 0:00:04]} 81. Ka3 {[%clk 0:00:19]}  Rb6 {[%clk 0:00:03]} 82. Ka2 {[%clk 0:00:17]}  Rc4 {[%clk 0:00:02]} 83. Re8+ {[%clk 0:00:14]}  Ka7 {[%clk 0:00:02]} 84. Re7+ {[%clk 0:00:13]}  Ka6 {[%clk 0:00:03]} 85. Ka3 {[%clk 0:00:12]}  Rc1 {[%clk 0:00:03]} 86. Ka2 {[%clk 0:00:11]}  Rc5 {[%clk 0:00:04]} 87. Ra7+ {[%clk 0:00:07]}  Kxa7 {[%clk 0:00:04]} 88. Nd6 {[%clk 0:00:08]}  Ra5# {[%clk 0:00:04]} 0-1


[Site "https://www.chess.com"]

[Event "Titled Tuesday Blitz July 11 Late 2023"]
[White "Ladan, Nicholas"]
[Black "Marchesich, Giovanni"]
[WhiteFideId "30918855"]
[BlackFideId "2824790"]
[WhiteElo "2483"]
[BlackElo "2269"]
[Result "1-0"]
[Round "4"]
[TimeControl "180+2"]
[Date "2023.07.11"]
[WhiteClock "0:00:13"]
[BlackClock "0:00:49"]
[Board "140"]

1. e3 {[%clk 0:03:00]}  b6 {[%clk 0:02:59]} 2. Qf3 {[%clk 0:02:59]}  d5 {[%clk 0:02:56]} 3. c4 {[%clk 0:02:57]}  Bb7 {[%clk 0:02:54]} 4. Nc3 {[%clk 0:02:58]}  Nf6 {[%clk 0:02:54]} 5. cxd5 {[%clk 0:02:52]}  e6 {[%clk 0:02:53]} 6. Bb5+ {[%clk 0:02:46]}  Nbd7 {[%clk 0:02:51]} 7. e4 {[%clk 0:02:29]}  exd5 {[%clk 0:02:47]} 8. exd5 {[%clk 0:02:20]}  Be7 {[%clk 0:02:47]} 9. d4 {[%clk 0:02:14]}  O-O {[%clk 0:02:47]} 10. Bc6 {[%clk 0:02:12]}  Bxc6 {[%clk 0:02:42]} 11. dxc6 {[%clk 0:02:13]}  Nb8 {[%clk 0:02:40]} 12. Nge2 {[%clk 0:02:12]}  a6 {[%clk 0:02:32]} 13. Bf4 {[%clk 0:02:04]}  Bd6 {[%clk 0:02:31]} 14. Bxd6 {[%clk 0:02:00]}  Qxd6 {[%clk 0:02:31]} 15. d5 {[%clk 0:02:00]}  Rd8 {[%clk 0:02:28]} 16. O-O {[%clk 0:01:53]}  a5 {[%clk 0:02:26]} 17. Rfd1 {[%clk 0:01:44]}  Na6 {[%clk 0:02:26]} 18. Nd4 {[%clk 0:01:31]}  Nb4 {[%clk 0:02:08]} 19. Nf5 {[%clk 0:01:19]}  Qc5 {[%clk 0:02:07]} 20. Rac1 {[%clk 0:01:07]}  Qf8 {[%clk 0:01:51]} 21. a3 {[%clk 0:00:48]}  Na6 {[%clk 0:01:44]} 22. Nb5 {[%clk 0:00:46]}  g6 {[%clk 0:01:44]} 23. Ne3 {[%clk 0:00:37]}  Ne8 {[%clk 0:01:39]} 24. h4 {[%clk 0:00:37]}  Nd6 {[%clk 0:01:39]} 25. Nxd6 {[%clk 0:00:30]}  Qxd6 {[%clk 0:01:34]} 26. h5 {[%clk 0:00:30]}  f5 {[%clk 0:01:27]} 27. Nc4 {[%clk 0:00:22]}  Qf6 {[%clk 0:01:22]} 28. h6 {[%clk 0:00:17]}  Nc5 {[%clk 0:01:12]} 29. d6 {[%clk 0:00:17]}  cxd6 {[%clk 0:01:10]} 30. Nxb6 {[%clk 0:00:17]}  Ra7 {[%clk 0:00:59]} 31. Qd5+ {[%clk 0:00:17]}  Qf7 {[%clk 0:00:56]} 32. Rxc5 {[%clk 0:00:16]}  Qxd5 {[%clk 0:00:52]} 33. Rcxd5 {[%clk 0:00:15]}  Rb8 {[%clk 0:00:52]} 34. Nc4 {[%clk 0:00:14]}  Rc7 {[%clk 0:00:49]} 35. Rxd6 {[%clk 0:00:13]} 1-0


[Site "https://www.chess.com"]

[Event "Titled Tuesday Blitz July 11 Late 2023"]
[White "Kiselev, Pavel"]
[Black "Salazar Farias, Luis German"]
[WhiteFideId "4191102"]
[BlackFideId "3902170"]
[WhiteElo "2266"]
[BlackElo "2471"]
[Result "1-0"]
[Round "4"]
[TimeControl "180+2"]
[Date "2023.07.11"]
[WhiteClock "0:00:32"]
[BlackClock "0:00:16"]
[Board "141"]

1. Nf3 {[%clk 0:03:00]}  d5 {[%clk 0:02:57]} 2. c4 {[%clk 0:03:01]}  e6 {[%clk 0:02:56]} 3. d4 {[%clk 0:03:01]}  Nf6 {[%clk 0:02:56]} 4. e3 {[%clk 0:02:52]}  b6 {[%clk 0:02:45]} 5. Nc3 {[%clk 0:02:51]}  Bb7 {[%clk 0:02:43]} 6. Bd3 {[%clk 0:02:50]}  Bd6 {[%clk 0:02:41]} 7. O-O {[%clk 0:02:49]}  O-O {[%clk 0:02:41]} 8. b3 {[%clk 0:02:50]}  Nbd7 {[%clk 0:02:37]} 9. Bb2 {[%clk 0:02:50]}  Re8 {[%clk 0:02:33]} 10. cxd5 {[%clk 0:02:50]}  exd5 {[%clk 0:02:33]} 11. Qc2 {[%clk 0:02:49]}  c6 {[%clk 0:02:24]} 12. Nd2 {[%clk 0:02:42]}  a5 {[%clk 0:02:17]} 13. Rae1 {[%clk 0:02:38]}  b5 {[%clk 0:02:16]} 14. e4 {[%clk 0:02:35]}  dxe4 {[%clk 0:02:14]} 15. Ncxe4 {[%clk 0:02:34]}  Nxe4 {[%clk 0:02:07]} 16. Nxe4 {[%clk 0:02:35]}  Bb4 {[%clk 0:01:58]} 17. Re3 {[%clk 0:02:27]}  Nf6 {[%clk 0:01:54]} 18. Nxf6+ {[%clk 0:02:26]}  Qxf6 {[%clk 0:01:55]} 19. Bxh7+ {[%clk 0:02:16]}  Kf8 {[%clk 0:01:53]} 20. d5 {[%clk 0:02:12]}  Qd6 {[%clk 0:01:42]} 21. Rg3 {[%clk 0:02:09]}  f6 {[%clk 0:01:02]} 22. Qg6 {[%clk 0:01:57]}  Re7 {[%clk 0:00:51]} 23. Bxf6 {[%clk 0:01:54]}  Qxf6 {[%clk 0:00:50]} 24. Rf3 {[%clk 0:01:55]}  Qxf3 {[%clk 0:00:49]} 25. gxf3 {[%clk 0:01:56]}  cxd5 {[%clk 0:00:47]} 26. Rd1 {[%clk 0:01:32]}  Rf7 {[%clk 0:00:30]} 27. Qb6 {[%clk 0:01:16]}  Rc8 {[%clk 0:00:11]} 28. Qxb5 {[%clk 0:01:06]}  d4 {[%clk 0:00:07]} 29. Be4 {[%clk 0:00:55]}  Bxe4 {[%clk 0:00:07]} 30. fxe4 {[%clk 0:00:56]}  Bc3 {[%clk 0:00:04]} 31. e5 {[%clk 0:00:52]}  Re8 {[%clk 0:00:04]} 32. Qc5+ {[%clk 0:00:49]}  Kg8 {[%clk 0:00:02]} 33. Kg2 {[%clk 0:00:41]}  Rf5 {[%clk 0:00:02]} 34. Qd5+ {[%clk 0:00:37]}  Kh7 {[%clk 0:00:02]} 35. f4 {[%clk 0:00:19]}  Rxf4 {[%clk 0:00:02]} 36. e6 {[%clk 0:00:19]}  Rf6 {[%clk 0:00:02]} 37. Qh5+ {[%clk 0:00:19]}  Rh6 {[%clk 0:00:02]} 38. Qxe8 {[%clk 0:00:19]}  Rg6+ {[%clk 0:00:03]} 39. Qxg6+ {[%clk 0:00:19]}  Kxg6 {[%clk 0:00:04]} 40. Kf3 {[%clk 0:00:19]}  Kf6 {[%clk 0:00:04]} 41. Ke4 {[%clk 0:00:19]}  Kxe6 {[%clk 0:00:05]} 42. Rxd4 {[%clk 0:00:19]}  Bxd4 {[%clk 0:00:04]} 43. Kxd4 {[%clk 0:00:20]}  Kf5 {[%clk 0:00:04]} 44. a3 {[%clk 0:00:20]}  Ke6 {[%clk 0:00:03]} 45. b4 {[%clk 0:00:20]}  axb4 {[%clk 0:00:04]} 46. axb4 {[%clk 0:00:21]}  Kd6 {[%clk 0:00:04]} 47. b5 {[%clk 0:00:19]}  g5 {[%clk 0:00:02]} 48. h3 {[%clk 0:00:20]}  Kc7 {[%clk 0:00:01]} 49. Ke5 {[%clk 0:00:18]}  Kb6 {[%clk 0:00:02]} 50. Kf5 {[%clk 0:00:18]}  Kxb5 {[%clk 0:00:02]} 51. Kxg5 {[%clk 0:00:19]}  Kc6 {[%clk 0:00:03]} 52. Kg6 {[%clk 0:00:20]}  Kd7 {[%clk 0:00:04]} 53. h4 {[%clk 0:00:20]}  Ke8 {[%clk 0:00:04]} 54. Kg7 {[%clk 0:00:21]}  Ke7 {[%clk 0:00:04]} 55. h5 {[%clk 0:00:22]}  Ke6 {[%clk 0:00:05]} 56. h6 {[%clk 0:00:23]}  Kf5 {[%clk 0:00:06]} 57. h7 {[%clk 0:00:24]}  Kg5 {[%clk 0:00:07]} 58. h8=Q {[%clk 0:00:25]}  Kf5 {[%clk 0:00:08]} 59. Qh6 {[%clk 0:00:25]}  Ke4 {[%clk 0:00:09]} 60. Qf6 {[%clk 0:00:26]}  Kd5 {[%clk 0:00:10]} 61. Kg6 {[%clk 0:00:27]}  Ke4 {[%clk 0:00:11]} 62. Qf5+ {[%clk 0:00:28]}  Kd4 {[%clk 0:00:11]} 63. Kf6 {[%clk 0:00:28]}  Ke3 {[%clk 0:00:11]} 64. Ke6 {[%clk 0:00:29]}  Kd4 {[%clk 0:00:12]} 65. Qe5+ {[%clk 0:00:30]}  Kd3 {[%clk 0:00:13]} 66. Kd5 {[%clk 0:00:30]}  Kc2 {[%clk 0:00:12]} 67. Qe4+ {[%clk 0:00:31]}  Kd2 {[%clk 0:00:12]} 68. Qd4+ {[%clk 0:00:31]}  Kc2 {[%clk 0:00:13]} 69. Ke4 {[%clk 0:00:31]}  Kc1 {[%clk 0:00:14]} 70. Qd3 {[%clk 0:00:32]}  Kb2 {[%clk 0:00:14]} 71. Kd4 {[%clk 0:00:32]}  Kc1 {[%clk 0:00:15]} 72. Qe2 {[%clk 0:00:32]}  Kb1 {[%clk 0:00:15]} 73. Kc3 {[%clk 0:00:31]}  Ka1 {[%clk 0:00:16]} 74. Qb2# {[%clk 0:00:32]} 1-0


[Site "https://www.chess.com"]

[Event "Titled Tuesday Blitz July 11 Late 2023"]
[White "rionelG"]
[Black "Sliwicki, Damian"]
[BlackFideId "1127128"]
[WhiteElo "2253"]
[BlackElo "2469"]
[Result "1-0"]
[Round "4"]
[TimeControl "180+2"]
[Date "2023.07.11"]
[WhiteClock "0:02:02"]
[BlackClock "0:01:28"]
[Board "142"]

1. e4 {[%clk 0:03:00]}  c5 {[%clk 0:02:55]} 2. g3 {[%clk 0:03:00]}  h5 {[%clk 0:02:54]} 3. h3 {[%clk 0:03:00]}  d5 {[%clk 0:02:53]} 4. exd5 {[%clk 0:02:59]}  Qxd5 {[%clk 0:02:54]} 5. Nf3 {[%clk 0:02:59]}  e5 {[%clk 0:02:53]} 6. Nc3 {[%clk 0:02:56]}  Qc6 {[%clk 0:02:51]} 7. Bg2 {[%clk 0:02:56]}  e4 {[%clk 0:02:44]} 8. Qe2 {[%clk 0:02:53]}  f5 {[%clk 0:02:41]} 9. d3 {[%clk 0:02:52]}  Nf6 {[%clk 0:02:39]} 10. dxe4 {[%clk 0:02:50]}  fxe4 {[%clk 0:02:36]} 11. Ng5 {[%clk 0:02:50]}  Be7 {[%clk 0:02:30]} 12. Ngxe4 {[%clk 0:02:49]}  Nxe4 {[%clk 0:02:31]} 13. Nxe4 {[%clk 0:02:48]}  Bf5 {[%clk 0:02:21]} 14. Bg5 {[%clk 0:02:32]}  O-O {[%clk 0:01:59]} 15. Bxe7 {[%clk 0:02:15]}  Re8 {[%clk 0:01:52]} 16. Nf6+ {[%clk 0:02:11]}  Qxf6 {[%clk 0:01:45]} 17. Bxf6 {[%clk 0:02:11]}  Nc6 {[%clk 0:01:32]} 18. Bxc6 {[%clk 0:02:04]}  bxc6 {[%clk 0:01:28]} 19. Be5 {[%clk 0:02:02]} 1-0


[Site "https://www.chess.com"]

[Event "Titled Tuesday Blitz July 11 Late 2023"]
[White "Chemin, Justo Reinaldo"]
[Black "Alboredo, Julia"]
[WhiteFideId "2101580"]
[BlackFideId "2124807"]
[WhiteElo "2246"]
[BlackElo "2468"]
[Result "0-1"]
[Round "4"]
[TimeControl "180+2"]
[Date "2023.07.11"]
[WhiteClock "0:00:00"]
[BlackClock "0:00:25"]
[Board "144"]

1. d4 {[%clk 0:03:00]}  Nf6 {[%clk 0:02:59]} 2. c4 {[%clk 0:02:59]}  g6 {[%clk 0:02:58]} 3. Nc3 {[%clk 0:02:59]}  Bg7 {[%clk 0:02:58]} 4. e4 {[%clk 0:02:58]}  d6 {[%clk 0:02:58]} 5. Nge2 {[%clk 0:02:59]}  O-O {[%clk 0:02:57]} 6. Ng3 {[%clk 0:03:00]}  e5 {[%clk 0:02:47]} 7. d5 {[%clk 0:02:59]}  h5 {[%clk 0:02:47]} 8. h4 {[%clk 0:02:57]}  c6 {[%clk 0:02:36]} 9. Be2 {[%clk 0:02:57]}  a6 {[%clk 0:02:34]} 10. Bg5 {[%clk 0:02:54]}  b5 {[%clk 0:02:20]} 11. dxc6 {[%clk 0:02:48]}  Nxc6 {[%clk 0:02:20]} 12. cxb5 {[%clk 0:02:48]}  Nd4 {[%clk 0:02:19]} 13. bxa6 {[%clk 0:02:40]}  Qb6 {[%clk 0:02:01]} 14. Bxf6 {[%clk 0:02:15]}  Qxb2 {[%clk 0:01:47]} 15. Nd5 {[%clk 0:01:59]}  Nxe2 {[%clk 0:01:33]} 16. Nxe2 {[%clk 0:01:48]}  Bxa6 {[%clk 0:01:33]} 17. Nec3 {[%clk 0:01:23]}  Bh6 {[%clk 0:00:49]} 18. Rb1 {[%clk 0:01:16]}  Qa3 {[%clk 0:00:49]} 19. Rb3 {[%clk 0:01:12]}  Qa5 {[%clk 0:00:48]} 20. Bg5 {[%clk 0:00:56]}  Bg7 {[%clk 0:00:48]} 21. g4 {[%clk 0:00:48]}  Bc4 {[%clk 0:00:48]} 22. gxh5 {[%clk 0:00:24]}  Bxb3 {[%clk 0:00:39]} 23. axb3 {[%clk 0:00:23]}  Qa1 {[%clk 0:00:31]} 24. O-O {[%clk 0:00:16]}  Qxd1 {[%clk 0:00:27]} 25. Rxd1 {[%clk 0:00:16]}  gxh5 {[%clk 0:00:28]} 26. Be7 {[%clk 0:00:08]}  Rfb8 {[%clk 0:00:27]} 27. Bxd6 {[%clk 0:00:02]}  Rxb3 {[%clk 0:00:25]} 28. Rd3 {[%clk 0:00:02]}  Ra1+ {[%clk 0:00:24]} 29. Kg2 {[%clk 0:00:00]}  Rc1 {[%clk 0:00:25]} 0-1


[Site "https://www.chess.com"]

[Event "Titled Tuesday Blitz July 11 Late 2023"]
[White "Estrada Nieto, Julian"]
[Black "Kohler, Aran"]
[WhiteFideId "5101018"]
[BlackFideId "1002856"]
[WhiteElo "2465"]
[BlackElo "2244"]
[Result "1-0"]
[Round "4"]
[TimeControl "180+2"]
[Date "2023.07.11"]
[WhiteClock "0:00:57"]
[BlackClock "0:01:08"]
[Board "145"]

1. e4 {[%clk 0:03:00]}  c6 {[%clk 0:02:59]} 2. d4 {[%clk 0:03:00]}  d5 {[%clk 0:03:00]} 3. Nc3 {[%clk 0:03:00]}  dxe4 {[%clk 0:02:59]} 4. Nxe4 {[%clk 0:03:01]}  Bf5 {[%clk 0:02:59]} 5. Ng3 {[%clk 0:03:01]}  Bg6 {[%clk 0:02:59]} 6. h4 {[%clk 0:03:02]}  h6 {[%clk 0:02:59]} 7. Nf3 {[%clk 0:03:03]}  Nd7 {[%clk 0:02:59]} 8. h5 {[%clk 0:03:04]}  Bh7 {[%clk 0:02:59]} 9. Bd3 {[%clk 0:03:04]}  Ngf6 {[%clk 0:02:59]} 10. Bxh7 {[%clk 0:03:00]}  Nxh7 {[%clk 0:02:59]} 11. Qd3 {[%clk 0:02:59]}  e6 {[%clk 0:03:00]} 12. Bd2 {[%clk 0:02:58]}  Be7 {[%clk 0:03:00]} 13. O-O-O {[%clk 0:02:56]}  Ng5 {[%clk 0:02:52]} 14. Qe2 {[%clk 0:02:39]}  Nxf3 {[%clk 0:02:46]} 15. Qxf3 {[%clk 0:02:39]}  Nf6 {[%clk 0:02:46]} 16. Kb1 {[%clk 0:02:32]}  Qd5 {[%clk 0:02:41]} 17. Qe2 {[%clk 0:02:30]}  Qxg2 {[%clk 0:02:38]} 18. c4 {[%clk 0:02:17]}  O-O-O {[%clk 0:02:04]} 19. Rdg1 {[%clk 0:02:11]}  Qxh1 {[%clk 0:02:00]} 20. Rxh1 {[%clk 0:02:00]}  Rxd4 {[%clk 0:02:00]} 21. Bc3 {[%clk 0:01:54]}  Rd7 {[%clk 0:01:59]} 22. Rd1 {[%clk 0:01:53]}  Rhd8 {[%clk 0:01:59]} 23. Rxd7 {[%clk 0:01:52]}  Rxd7 {[%clk 0:02:00]} 24. a3 {[%clk 0:01:52]}  Bc5 {[%clk 0:01:42]} 25. Bxf6 {[%clk 0:01:34]}  gxf6 {[%clk 0:01:42]} 26. Ne4 {[%clk 0:01:34]}  Be7 {[%clk 0:01:38]} 27. Qe3 {[%clk 0:01:26]}  f5 {[%clk 0:01:35]} 28. Nc3 {[%clk 0:01:22]}  Bg5 {[%clk 0:01:23]} 29. Qxa7 {[%clk 0:01:22]}  Rd2 {[%clk 0:01:20]} 30. Qa8+ {[%clk 0:01:12]}  Kc7 {[%clk 0:01:18]} 31. Qa5+ {[%clk 0:01:11]}  Kb8 {[%clk 0:01:18]} 32. Qe5+ {[%clk 0:01:04]}  Ka7 {[%clk 0:01:08]} 33. f4 {[%clk 0:00:57]} 1-0


[Site "https://www.chess.com"]

[Event "Titled Tuesday Blitz July 11 Late 2023"]
[White "Kopacz, Grzegorz"]
[Black "Rubio Tent, Francisco"]
[WhiteFideId "1109880"]
[BlackFideId "2238233"]
[WhiteElo "2231"]
[BlackElo "2460"]
[Result "0-1"]
[Round "4"]
[TimeControl "180+2"]
[Date "2023.07.11"]
[WhiteClock "0:00:00"]
[BlackClock "0:00:14"]
[Board "146"]

1. e4 {[%clk 0:03:00]}  c6 {[%clk 0:03:00]} 2. d4 {[%clk 0:02:58]}  d5 {[%clk 0:03:00]} 3. Nc3 {[%clk 0:02:55]}  dxe4 {[%clk 0:03:00]} 4. Nxe4 {[%clk 0:02:56]}  Bf5 {[%clk 0:03:01]} 5. Ng3 {[%clk 0:02:53]}  Bg6 {[%clk 0:03:01]} 6. h4 {[%clk 0:02:51]}  h6 {[%clk 0:03:01]} 7. h5 {[%clk 0:02:50]}  Bh7 {[%clk 0:03:01]} 8. f4 {[%clk 0:02:48]}  e6 {[%clk 0:02:52]} 9. Nf3 {[%clk 0:02:47]}  Nf6 {[%clk 0:02:38]} 10. Bd3 {[%clk 0:02:46]}  Bxd3 {[%clk 0:02:38]} 11. Qxd3 {[%clk 0:02:46]}  c5 {[%clk 0:02:39]} 12. c3 {[%clk 0:02:39]}  Nc6 {[%clk 0:02:33]} 13. O-O {[%clk 0:02:26]}  cxd4 {[%clk 0:02:30]} 14. Nxd4 {[%clk 0:02:22]}  Bc5 {[%clk 0:02:27]} 15. Rd1 {[%clk 0:02:03]}  Qb6 {[%clk 0:01:58]} 16. b4 {[%clk 0:01:31]}  Bxd4+ {[%clk 0:01:45]} 17. cxd4 {[%clk 0:01:31]}  O-O-O {[%clk 0:01:37]} 18. Bb2 {[%clk 0:01:14]}  Nd5 {[%clk 0:01:30]} 19. b5 {[%clk 0:00:58]}  Nce7 {[%clk 0:01:15]} 20. Rac1+ {[%clk 0:00:53]}  Kb8 {[%clk 0:01:12]} 21. Ne2 {[%clk 0:00:44]}  Nf5 {[%clk 0:01:01]} 22. a4 {[%clk 0:00:21]}  Rc8 {[%clk 0:00:49]} 23. Rxc8+ {[%clk 0:00:16]}  Rxc8 {[%clk 0:00:50]} 24. Rc1 {[%clk 0:00:15]}  Rd8 {[%clk 0:00:47]} 25. Ba3 {[%clk 0:00:12]}  Rc8 {[%clk 0:00:23]} 26. Rxc8+ {[%clk 0:00:08]}  Kxc8 {[%clk 0:00:22]} 27. Qc4+ {[%clk 0:00:04]}  Qc7 {[%clk 0:00:18]} 28. Qxc7+ {[%clk 0:00:04]}  Kxc7 {[%clk 0:00:19]} 29. Kf2 {[%clk 0:00:04]}  Kb6 {[%clk 0:00:14]} 30. g4 {[%clk 0:00:00]}  Nfe7 {[%clk 0:00:14]} 0-1


[Site "https://www.chess.com"]

[Event "Titled Tuesday Blitz July 11 Late 2023"]
[White "Sala, Giulia"]
[Black "KorolDimitriy75"]
[WhiteFideId "2840451"]
[WhiteElo "2230"]
[BlackElo "2455"]
[Result "1-0"]
[Round "4"]
[TimeControl "180+2"]
[Date "2023.07.11"]
[WhiteClock "0:01:16"]
[BlackClock "0:00:00"]
[Board "147"]

1. d4 {[%clk 0:03:00]}  Nf6 {[%clk 0:02:59]} 2. Bf4 {[%clk 0:03:01]}  c5 {[%clk 0:02:58]} 3. e3 {[%clk 0:03:01]}  Qb6 {[%clk 0:02:57]} 4. Nc3 {[%clk 0:02:58]}  Qxb2 {[%clk 0:02:57]} 5. Nb5 {[%clk 0:02:58]}  Nd5 {[%clk 0:02:57]} 6. a3 {[%clk 0:02:29]}  Nc3 {[%clk 0:02:12]} 7. Nc7+ {[%clk 0:02:28]}  Kd8 {[%clk 0:02:12]} 8. Qc1 {[%clk 0:02:28]}  Qxc1+ {[%clk 0:02:12]} 9. Rxc1 {[%clk 0:02:29]}  e5 {[%clk 0:02:11]} 10. Nxa8 {[%clk 0:02:07]}  exf4 {[%clk 0:02:10]} 11. Bd3 {[%clk 0:02:05]}  cxd4 {[%clk 0:02:04]} 12. exf4 {[%clk 0:02:04]}  Bxa3 {[%clk 0:01:06]} 13. Ra1 {[%clk 0:02:03]}  Bb2 {[%clk 0:01:01]} 14. Rxa7 {[%clk 0:02:02]}  Nc6 {[%clk 0:01:01]} 15. Nb6 {[%clk 0:01:31]}  Nxa7 {[%clk 0:00:55]} 16. Nf3 {[%clk 0:01:32]}  Ba3 {[%clk 0:00:20]} 17. Nxd4 {[%clk 0:01:25]}  Bc5 {[%clk 0:00:19]} 18. Nxc8 {[%clk 0:01:25]}  Nxc8 {[%clk 0:00:14]} 19. Nb3 {[%clk 0:01:23]}  Bb4 {[%clk 0:00:11]} 20. O-O {[%clk 0:01:23]}  Nb6 {[%clk 0:00:10]} 21. Ra1 {[%clk 0:01:20]}  Kc7 {[%clk 0:00:09]} 22. g3 {[%clk 0:01:20]}  g6 {[%clk 0:00:09]} 23. Nd4 {[%clk 0:01:20]}  Ra8 {[%clk 0:00:06]} 24. Re1 {[%clk 0:01:19]}  Ncd5 {[%clk 0:00:05]} 25. Nb5+ {[%clk 0:01:19]}  Kc6 {[%clk 0:00:04]} 26. Re4 {[%clk 0:01:18]}  Ra1+ {[%clk 0:00:03]} 27. Kg2 {[%clk 0:01:18]}  Nc3 {[%clk 0:00:03]} 28. Nxc3 {[%clk 0:01:16]}  Bxc3 {[%clk 0:00:03]} 29. Re7 {[%clk 0:01:16]}  f5 {[%clk 0:00:02]} 30. Rxh7 {[%clk 0:01:16]}  Rd1 {[%clk 0:00:00]} 31. Rh6 {[%clk 0:01:16]} 1-0


[Site "https://www.chess.com"]